Cogmind - Beta 15 @@@ ROGUE MODE // 2025.06.26 @ 23:28:39 Player: CheifClapdad Result: Destroyed by G-73 Enforcer with Phase Gun Performance ------------- Evolutions (8) 4000 Regions Visited (20) 4000 Robots Destroyed (217) 1085 Value Destroyed (9106) 9106 Prototype IDs (24) 480 Alien Tech Used (0) 0 Bonus (4010) 4010 TOTAL SCORE: 22681 Bonus ------- Triggered Max Security 1000 High Alert Combat Kills 410 Follower Combat Kills 400 Entered Garrisons 400 Used RIF Installer 500 Entered DSFs 1000 Aligned with FarCom 300 Cogmind --------- Core Integrity 0/1450 Matter 256/300 Energy 100/100 System Corruption 9% Temperature Cool (0) Movement Core (50) Location -2/Quarantine Parts ------- > --- POWER (2) -------- (None) > --- PROPULSION (6) --- (None) > --- UTILITY (11) ----- Improved Targeting Computer Improved Target Analyzer Improved Target Analyzer > --- WEAPON (4) ------- (None) > --- INVENTORY (5) ---- Improved Fusion Compressor Light Quantum Reactor Light Quantum Reactor Light Quantum Reactor Improved Focal Shield Peak State ------------ > --- POWER ------------ Light Antimatter Reactor Light Quantum Reactor > --- PROPULSION ------- Armored Heavy Treads Armored Heavy Treads > --- UTILITY ---------- Advanced Heat Sink High-capacity Storage Unit Improved Energy Well High-capacity Matter Pod Improved Targeting Computer Improved Target Analyzer Improved Target Analyzer Improved Armor Integrity Analyzer Advanced Phase Shifter Improved Remote Force Field Improved Point Defense System > --- WEAPON ----------- Enhanced Nova Cannon Heavy Machine Gun Heavy Machine Gun KE Penetrator > --- INVENTORY -------- Light Antimatter Reactor Improved Fusion Compressor Light Quantum Reactor Myomer Leg Myomer Leg High-capacity Storage Unit High-capacity Matter Pod Improved Point Defense System Improved Point Defense System [Rating: 134] Favorites ----------- Power Light Antimatter Reactor Engine Improved Deuterium Engine Power Core Neutrino Core Reactor Light Antimatter Reactor Propulsion Armored Huge Wheel Treads Armored Treads Wheel Armored Huge Wheel Utility High-capacity Storage Unit Device Recoil Stabilizer Storage High-capacity Storage Unit Processor Improved Target Analyzer Protection Improved Medium Armor Plating Weapon Light Assault Rifle Energy Cannon Enhanced Nova Cannon Ballistic Gun Light Assault Rifle Ballistic Cannon Advanced Assault Cannon Launcher Rocket Launcher Build | -11 -10 -9 -9 -9 -8 -8 -7 -6 -6 -5 -5 -5 -4 -4 -3 -3 -2 -2 -2 -2 ------- Run | Yrd Mat Mat Min Exi Min Mat Fac Fac DSF Fac Was Fac Fac Gar Res DSF Res Gar Res Qua Slots Evolved 16 | . . 2 . . . 2 2 2 . 2 . . 2 . 2 . 2 . . . Power 1 | . . . . . . . . . . 1 . . . . . . . . . . Propulsion 4 | . . . . . . . 2 . . . . . . . 2 . . . . . Utility 9 | . . . . . . 2 . 2 . 1 . . 2 . . . 2 . . . Weapon 2 | . . 2 . . . . . . . . . . . . . . . . . . Parts Attached 160 | 6 1 6 3 . 1 20 16 3 1 2 . 23 32 12 2 8 4 12 8 . Power 29 | 1 . . . . . 3 3 . . . . 4 7 3 . . 1 3 4 . Engine 5 | 1 . . . . . 1 2 . . . . 1 . . . . . . . . Core 8 | . . . . . . 2 1 . . . . 3 1 1 . . . . . . Reactor 16 | . . . . . . . . . . . . . 6 2 . . 1 3 4 . Propulsion 35 | 2 . 1 2 . . 2 5 . . 1 . 6 4 1 2 6 . 3 . . Treads 24 | 1 . 1 1 . . 1 4 . . 1 . . 4 1 2 5 . 3 . . Leg . | . . . . . . . . . . . . . . . . . . . . . Wheel 11 | 1 . . 1 . . 1 1 . . . . 6 . . . 1 . . . . Hover . | . . . . . . . . . . . . . . . . . . . . . Flight . | . . . . . . . . . . . . . . . . . . . . . Utility 53 | 1 1 1 . . 1 9 4 2 . 1 . 6 13 5 . 1 3 2 3 . Device 25 | . . . . . 1 5 . 1 . 1 . 3 8 1 . . . 2 3 . Storage 5 | 1 1 . . . . . . . . . . 1 1 1 . . . . . . Processor 7 | . . . . . . . . 1 . . . . 2 . . 1 3 . . . Hackware . | . . . . . . . . . . . . . . . . . . . . . Protection 16 | . . 1 . . . 4 4 . . . . 2 2 3 . . . . . . Artifact . | . . . . . . . . . . . . . . . . . . . . . Weapon 43 | 2 . 4 1 . . 6 4 1 1 . . 7 8 3 . 1 . 4 1 . Energy Gun . | . . . . . . . . . . . . . . . . . . . . . Energy Cannon 1 | . . . . . . . . . . . . . . . . . . . 1 . Ballistic Gun 36 | 2 . 4 . . . 6 2 1 1 . . 6 8 2 . . . 4 . . Ballistic Cannon 5 | . . . . . . . 2 . . . . 1 . 1 . 1 . . . . Launcher 1 | . . . 1 . . . . . . . . . . . . . . . . . Special Weapon . | . . . . . . . . . . . . . . . . . . . . . Impact Weapon . | . . . . . . . . . . . . . . . . . . . . . Slashing Weapon . | . . . . . . . . . . . . . . . . . . . . . Piercing Weapon . | . . . . . . . . . . . . . . . . . . . . . Special Melee Weapon . | . . . . . . . . . . . . . . . . . . . . . Unidentified Prototypes 1 | . . . . . . . . . . . . 1 . . . . . . . . Parts Lost 111 | . . 4 2 . . 8 7 . . . 1 21 17 9 . 16 1 11 13 1 Power 16 | . . . 1 . . . 2 . . . . 3 2 1 . 2 . 3 2 . Propulsion 26 | . . 1 1 . . 1 1 . . . . 5 2 1 . 7 . 5 2 . Utility 33 | . . 1 . . . 3 1 . . . . 6 8 2 . 4 1 1 5 1 Weapon 36 | . . 2 . . . 4 3 . . . 1 7 5 5 . 3 . 2 4 . Highest Loss Streak 16 | . . 4 2 . . 3 2 . . . 1 6 4 6 . 16 1 6 10 1 To Critical Strikes 2 | . . . . . . . . . . . . . 1 . . . . . 1 . Average Backups 13 | 2 6 9 16 17 17 15 13 13 14 13 14 10 18 17 12 13 11 8 9 5 Power 1 | . 1 1 1 2 2 1 . . . . . . 3 2 4 4 4 3 3 4 Propulsion 4 | 1 2 4 6 7 7 5 3 4 4 4 5 3 6 6 4 3 5 3 1 . Utility 5 | . . 1 6 6 6 7 7 6 7 6 6 5 4 4 3 5 2 2 3 1 Weapon 2 | . 2 2 1 2 2 1 2 2 3 3 3 1 3 3 1 . . . . . Tool/Special . | . . . . . . . . . . . . . . . . . . . . . Unused Backups 40 | . . . . 1 . 10 10 . . . . . 6 5 . . . . 7 1 Power 2 | . . . . . . 1 1 . . . . . . . . . . . . . Propulsion 17 | . . . . . . 5 3 . . . . . 3 4 . . . . 2 . Utility 17 | . . . . 1 . 3 5 . . . . . 2 . . . . . 5 1 Weapon 4 | . . . . . . 1 1 . . . . . 1 1 . . . . . . Tool/Special . | . . . . . . . . . . . . . . . . . . . . . Average Slot Usage (%) 79 | . 85 90 77 77 82 83 87 85 86 82 77 71 84 91 87 84 62 62 74 16 Engine 1 | . 14 11 . . . 2 1 6 6 5 5 3 . . . . . . . . Core 1 | . . . . . . 4 4 . . . . 3 . 4 4 3 . . . . Reactor 3 | . . . . . . . . . . . . . 9 5 4 3 3 4 7 . Treads 9 | . 14 8 11 11 11 1 14 13 13 11 8 4 8 15 21 20 17 11 7 . Wheel 5 | . 14 11 11 11 11 9 6 6 6 5 5 9 4 . . . . . . . Device 11 | . . . . . 5 17 10 12 13 17 17 8 18 13 9 9 . 4 12 . Storage 9 | . 14 11 11 11 11 9 7 6 6 5 5 8 11 11 14 14 13 13 12 . Processor 6 | . . . . . . . . 6 6 5 5 5 8 13 9 9 19 17 17 16 Protection 4 | . . 5 . . . 8 9 6 6 5 5 3 2 6 9 7 3 . . . Ballistic Gun 20 | . 28 43 43 44 44 31 19 13 13 11 11 13 18 16 9 8 . 9 12 . Ballistic Cannon 3 | . . . . . . . 8 13 13 11 8 5 . 2 4 4 4 . . . Peak Build Rating 134 | 6 7 10 10 11 12 33 54 62 63 70 70 68 116 113 102 103 98 126 134 23 Average Rating 64 | 4 6 8 8 9 11 27 45 61 62 69 65 56 99 105 101 95 95 101 122 22 On Entrance 51 | . 6 6 9 9 11 12 33 54 62 63 70 60 60 111 99 102 77 96 109 23 Naked Turns . | . . . . . . . . . . . . . . . . . . . . . Heaviest Build 125 | 14 49 54 44 44 45 60 92 97 98 102 102 99 115 112 112 112 79 99 125 . Greatest Support 180 | 20 20 16 16 16 16 28 40 28 28 28 28 56 130 130 171 171 165 180 120 3 Greatest Overweight (x) 20 | . 3 3 2 2 2 3 20 3 3 3 3 6 2 . . 1 . 1 1 . Average Overweight (x) 1 | . . 3 2 2 2 1 2 3 3 3 3 1 . . . . . . . . Largest Inventory Capacity 20 | 8 20 20 20 20 20 20 20 20 20 20 20 20 20 20 20 20 20 20 20 5 Average Capacity 19 | 7 9 20 20 20 20 20 20 20 20 20 20 20 20 20 20 20 20 20 19 5 Most Carried 20 | 3 9 11 18 20 20 20 20 20 20 20 20 19 20 20 13 18 18 14 14 5 Average Carried 16 | 2 6 9 16 18 20 19 19 19 20 19 20 14 18 17 12 14 14 9 9 5 Final Capacity 20 | 8 20 20 20 20 20 20 20 20 20 20 20 20 20 20 20 20 20 20 5 5 Final Carried 20 | 3 9 10 18 20 20 20 20 20 20 20 20 10 20 14 12 18 14 7 5 5 Class Distribution -------------------- 29% | Scavenger-Tank 18% | Gunner 11% | Tank 11% | Skirmisher 10% | Mutant 9% | Scavenger-Skirmisher 9% | Scavenger-Gunner Dominant Class ---------------- Mutant | -10/Materials Tank | -9/Materials Gunner | -9/Mines Gunner | -9/Exiles Skirmisher | -8/Mines Skirmisher | -8/Materials Scavenger-Skirmisher | -7/Factory Gunner | -6/Factory Gunner | -6/DSF Gunner | -5/Factory Gunner | -5/Waste Gunner | -5/Factory Scavenger-Tank | -4/Factory Scavenger-Tank | -4/Garrison Scavenger-Tank | -3/Research Scavenger-Tank | -3/DSF Mutant | -2/Research Scavenger-Gunner | -2/Garrison Scavenger-Gunner | -2/Research Mutant | -2/Quarantine Resources | -11 -10 -9 -9 -9 -8 -8 -7 -6 -6 -5 -5 -5 -4 -4 -3 -3 -2 -2 -2 -2 ----------- Run | Yrd Mat Mat Min Exi Min Mat Fac Fac DSF Fac Was Fac Fac Gar Res DSF Res Gar Res Qua Matter Collected 8184 | 234 91 299 206 . 44 655 868 . 284 100 . 1549 1851 864 . 49 . 639 450 1 Remotely 226 | . . . . . 10 216 . . . . . . . . . . . . . . Salvage Created 9788 | . 91 480 243 . 25 1137 803 . 378 . . 1042 2876 1012 . 154 . 886 661 . Parts 518 | . 3 29 16 . 5 68 63 . 27 . . 51 138 45 . 5 . 35 33 . Haulers Intercepted 3 | . . 1 . . . 1 . . . . . . 1 . . . . . . . Recyclers Shooed 7 | . . . . . . . . . . . . 5 2 . . . . . . . Parts Field Recycled . | . . . . . . . . . . . . . . . . . . . . . Retrieved Matter . | . . . . . . . . . . . . . . . . . . . . . Parts Self-Destructed . | . . . . . . . . . . . . . . . . . . . . . Prevented . | . . . . . . . . . . . . . . . . . . . . . Kills | -11 -10 -9 -9 -9 -8 -8 -7 -6 -6 -5 -5 -5 -4 -4 -3 -3 -2 -2 -2 -2 ------- Run | Yrd Mat Mat Min Exi Min Mat Fac Fac DSF Fac Was Fac Fac Gar Res DSF Res Gar Res Qua Combat Hostiles Destroyed 178 | . 2 15 5 . 3 26 23 . 6 . . 16 35 20 . 3 . 15 9 . Melee 2 | . . . . . . . . . . . . . . . . 1 . 1 . . Guns 144 | . 2 15 3 . . 26 13 . 3 . . 8 35 17 . . . 13 9 . Cannons 23 | . . . . . . . 9 . 3 . . 7 . 1 . 2 . 1 . . AOE 9 | . . . 2 . 3 . 1 . . . . 1 . 2 . . . . . . Classes Destroyed 16 | . 2 5 1 . . 1 3 . 2 . . 1 . . . . . 1 . . Worker 9 | . . 1 . . . . 2 . . . . 4 2 . . . . . . . Builder 11 | . . 1 . . . 1 2 . . . . . 4 . . . . . 3 . Tunneler 4 | . . . 1 . 1 . 2 . . . . . . . . . . . . . Hauler 3 | . . 1 . . . 1 . . . . . . 1 . . . . . . . Recycler 6 | . . . . . . . . . . . . 1 5 . . . . . . . Mechanic 2 | . . . . . . . 1 . . . . 1 . . . . . . . . Operator 1 | . . . . . . . 1 . . . . . . . . . . . . . Watcher 3 | . 1 . . . . . . . . . . 1 1 . . . . . . . Swarmer 59 | . . 10 . . 3 8 12 . . . . 1 8 8 . 3 . 6 . . Grunt 57 | . 2 4 5 . . 10 4 . . . . 4 10 10 . . . 5 3 . Duelist 1 | . . . . . . . . . . . . . . . . . . 1 . . Sentry 20 | . . 1 . . . 4 2 . 1 . . 4 5 2 . . . 1 . . Specialist 4 | . . . . . . . . . 4 . . . . . . . . . . . Hunter 19 | . . . . . . 4 1 . . . . 6 6 . . . . 1 1 . Programmer 16 | . . . . . . . 4 . . . . 1 6 . . . . 1 4 . Heavy 2 | . . . . . . . . . 1 . . . . . . . . . 1 . Best Kill Streak 10 | . 1 10 5 . 4 5 5 . 2 . . 3 9 4 . 2 . 5 3 . Combat Bots Only 7 | . 1 4 5 . 3 4 4 . 2 . . 3 7 4 . 2 . 5 3 . Max Kills in Single Turn 4 | . 1 2 2 . 4 2 4 . 1 . . 1 2 3 . 1 . 1 2 . Gunslinging 1 | . . 1 . . . . . . . . . . 1 1 . . . . . . Exploded 3 | . . . 2 . 3 . 1 . . . . 1 . 2 . . . . . . Melee 1 | . . . . . . . . . . . . . . . . 1 . 1 . . Uniques/NPCs Destroyed . | . . . . . . . . . . . . . . . . . . . . . Combat | -11 -10 -9 -9 -9 -8 -8 -7 -6 -6 -5 -5 -5 -4 -4 -3 -3 -2 -2 -2 -2 -------- Run | Yrd Mat Mat Min Exi Min Mat Fac Fac DSF Fac Was Fac Fac Gar Res DSF Res Gar Res Qua Hostile Shots Fired 2039 | . 13 107 29 . 2 139 184 . 14 . 2 243 403 132 . 249 18 266 159 79 Missed 639 | . 5 26 6 . 2 26 62 . 4 . . 54 148 18 . 108 7 85 43 45 Hits 1400 | . 8 81 23 . . 113 122 . 10 . 2 189 255 114 . 141 11 181 116 34 Melee 3 | . . . . . . . . . . . 2 . . . . . . 1 . . Projectile 1397 | . 8 81 23 . . 113 122 . 10 . . 189 255 114 . 141 11 180 116 34 AOE 3 | . . . . . . . . . . . . 1 2 . . . . . . . Critical Strikes 38 | . . . . . . 5 . . . . 2 6 6 6 . 1 . 6 4 2 Part Disruptions 2 | . . . . . . . . . . . . 1 . . . . . 1 . . Damage Taken 22787 | . 105 714 353 . 2 1314 1573 108 123 . 62 3619 3709 1597 . 1987 252 4225 2248 796 Core 3118 | . 40 118 73 . 1 176 152 21 . . . 425 380 96 . 168 40 381 299 748 Absorbed by Shields 1943 | . . . . . . 179 . . 14 . 22 233 912 . . . . . 583 . Reduced by Siege Mode 382 | . . . . . . . . . . . . . 64 13 . . . 176 129 . Ignored by Resistances 1535 | . . . . . . . . . . . . . 546 595 . . . . 394 . Regen/Repaired (Parts) 215 | . . . . . . . . . . . . . 215 . . . . . . . Core Remaining (%) 75 | 100 84 . . . 52 68 78 . 97 . . 57 . 58 . 87 . . . . Volleys Fired 526 | . 11 39 16 . 1 80 58 . 7 . . 77 98 32 . 7 2 62 36 . Largest 4 | . 2 4 4 . 4 4 4 . 4 . . 4 4 4 . 4 1 4 4 . Hottest 213 | . 40 80 93 . 93 88 136 . 140 . . 128 128 147 . 161 47 126 213 . Shots Fired 1701 | . 22 152 56 . 4 265 212 . 28 . . 228 362 121 . 22 2 125 102 . Gun 1502 | . 22 152 55 . 3 265 151 . 14 . . 152 358 98 . 14 . 119 99 . Cannon 195 | . . . . . . . 61 . 14 . . 76 4 21 . 8 2 6 3 . Launcher 4 | . . . 1 . 1 . . . . . . . . 2 . . . . . . Special . | . . . . . . . . . . . . . . . . . . . . . Kinetic 1694 | . 22 152 55 . 3 265 212 . 28 . . 228 362 119 . 22 2 125 99 . Thermal 3 | . . . . . . . . . . . . . . . . . . . 3 . Explosive 4 | . . . 1 . 1 . . . . . . . . 2 . . . . . . Electromagnetic . | . . . . . . . . . . . . . . . . . . . . . Robot Hit Streak 35 | . 8 5 10 . . 15 17 . 20 . . 34 35 14 . 4 . 19 32 . Robot Miss Streak 7 | . 2 6 4 . . 7 5 . . . . 4 4 4 . 4 . 3 4 . Penetration Max 1 | . . . . . . . 1 . . . . 1 1 1 . 1 . 1 1 . Secondary Targets 32 | . . 6 2 . . 4 . . . . . . 9 4 . . . 5 2 . Max Gunslinging Chain 1 | . . 1 1 . . 1 . . . . . . 1 1 . . . 1 1 . Shots Hit Robots 1079 | . 15 63 38 . . 171 119 . 17 . . 162 249 77 . 9 . 82 77 . Core Hits 473 | . 6 31 15 . 3 77 49 . 10 . . 58 104 46 . 7 . 36 30 1 Critical Kills 24 | . 1 . . . . . 1 . . . . 1 10 4 . . . 4 3 . Critical Parts Destroyed 34 | . . 1 . . . . 2 . 1 . . . 12 8 . 1 . 5 4 . Critical Strikes 63 | . 1 1 . . . . 3 . 1 . . 5 23 12 . 1 . 9 7 . Destroy 59 | . 1 1 . . . . 3 . 1 . . 1 23 12 . 1 . 9 7 . Blast 4 | . . . . . . . . . . . . 4 . . . . . . . . Melee Attacks . | . . . . . . . . . . . . . . . . . . . . . Impact . | . . . . . . . . . . . . . . . . . . . . . Slashing . | . . . . . . . . . . . . . . . . . . . . . Piercing . | . . . . . . . . . . . . . . . . . . . . . Sneak Attacks . | . . . . . . . . . . . . . . . . . . . . . Combat Hostiles . | . . . . . . . . . . . . . . . . . . . . . Follow-up Attacks . | . . . . . . . . . . . . . . . . . . . . . Damage Inflicted 23327 | . 194 744 476 . 176 1707 2848 . 450 . . 3613 6049 2086 . 383 . 2194 2403 4 Guns 19157 | . 194 736 357 . . 1698 1517 . 265 . . 2394 5794 1683 . 257 . 2098 2164 . Cannons 2596 | . . . . . . . 802 . 185 . . 1219 46 112 . 119 . 72 41 . Explosions 1453 | . . . 119 . 176 . 514 . . . . . 180 291 . . . . 173 . Melee . | . . . . . . . . . . . . . . . . . . . . . Ramming 121 | . . 8 . . . 9 15 . . . . . 29 . . 7 . 24 25 4 Kinetic 21712 | . 194 736 357 . . 1698 2319 . 450 . . 3613 5840 1795 . 376 . 2170 2164 . Thermal 735 | . . . . . . . 514 . . . . . 180 . . . . . 41 . Explosive 759 | . . . 119 . 176 . . . . . . . . 291 . . . . 173 . Electromagnetic . | . . . . . . . . . . . . . . . . . . . . . Impact . | . . . . . . . . . . . . . . . . . . . . . Slashing . | . . . . . . . . . . . . . . . . . . . . . Piercing . | . . . . . . . . . . . . . . . . . . . . . Highest Corruption 9 | . . . . . . 2 5 . . . 6 8 2 2 . . . 2 7 9 Average Corruption 3 | . . . . . . 2 1 . . . 6 6 1 2 . . . 1 2 8 Corruption Purged . | . . . . . . . . . . . . . . . . . . . . . Corruption Blocked . | . . . . . . . . . . . . . . . . . . . . . Effects 122 | . . . . . . 2 19 . . . 1 38 26 11 . . . 4 10 11 Message Errors 33 | . . . . . . 1 6 . . . . 11 8 1 . . . 2 2 2 Matter Fused 27 | . . . . . . . 3 . . . . 6 6 3 . . . 1 2 6 Heat Flow Errors 18 | . . . . . . . 4 . . . 1 5 5 . . . . . 2 1 Energy Discharges 15 | . . . . . . 1 3 . . . . 4 2 3 . . . . 1 1 Parts Rejected 2 | . . . . . . . . . . . . 2 . . . . . . . . Parts Fused 2 | . . . . . . . . . . . . 1 1 . . . . . . . Data Loss (minor) 9 | . . . . . . . 2 . . . . 3 . 2 . . . . 1 1 Data Loss (major) 4 | . . . . . . . . . . . . 1 3 . . . . . . . Misfires 3 | . . . . . . . 1 . . . . 1 . 1 . . . . . . Alerts 4 | . . . . . . . . . . . . 2 . . . . . . 2 . Weapon Failures 5 | . . . . . . . . . . . . 2 1 1 . . . 1 . . Overload Shots . | . . . . . . . . . . . . . . . . . . . . . Overflow Damage 271 | . . . . . 8 . 153 . . . . . . 14 . . . . 96 . Projectiles 27 | . . . . . . . 27 . . . . . . . . . . . . . Explosions 244 | . . . . . 8 . 126 . . . . . . 14 . . . . 96 . Melee . | . . . . . . . . . . . . . . . . . . . . . Knockbacks 21 | . . . . . . . 7 . . . . 10 . 2 . 2 . . . . Impact . | . . . . . . . . . . . . . . . . . . . . . Kinetic 21 | . . . . . . . 7 . . . . 10 . 2 . 2 . . . . Secondary . | . . . . . . . . . . . . . . . . . . . . . Self-Inflicted Damage 316 | . . 4 32 . 3 4 93 . . . . . 63 5 . . . . 110 2 Shots 6 | . . . 1 . 1 . 1 . . . . . 1 1 . . . . 1 . Rammed 16 | . . 2 . . . 1 3 . . . . . 2 . . . . 2 3 3 Targets Rammed 19 | . . 2 . . . 1 3 . . . . . 3 . . 1 . 3 3 3 Kicked . | . . . . . . . . . . . . . . . . . . . . . Crushed 3 | . . . . . . . . . . . . . 1 . . 1 . 1 . . Highest Temperature 455 | . 2 168 207 . 36 222 305 . 36 . 216 455 332 94 . . . 1 248 102 Average Temperature 85 | . 2 50 103 . 20 54 65 . 17 . 111 147 93 26 . . . 1 73 57 Received Heat Transfer 2709 | . 60 87 186 . . 411 252 . 24 . . 309 302 523 . . . 324 141 90 Effects 12 | . . . . . . . . . . . . 11 1 . . . . . . . Shutdowns 3 | . . . . . . . . . . . . 3 . . . . . . . . Energy Bleed 2 | . . . . . . . . . . . . 2 . . . . . . . . Interference 2 | . . . . . . . . . . . . 2 . . . . . . . . Matter Decay 2 | . . . . . . . . . . . . 1 1 . . . . . . . Damage (major) 3 | . . . . . . . . . . . . 3 . . . . . . . . Siege Activations 9 | . . . . . . . . . . . . . 3 2 . . . 2 2 . Total Turns 271 | . . . . . . . . . . . . . 84 29 . . . 89 69 . Longest Duration 54 | . . . . . . . . . . . . . 32 22 . . . 47 54 . Martial Activations . | . . . . . . . . . . . . . . . . . . . . . Shielding Activations . | . . . . . . . . . . . . . . . . . . . . . Robots Disrupted . | . . . . . . . . . . . . . . . . . . . . . Combat Hostiles . | . . . . . . . . . . . . . . . . . . . . . Robots Corrupted . | . . . . . . . . . . . . . . . . . . . . . Combat Hostiles . | . . . . . . . . . . . . . . . . . . . . . Parts Fried . | . . . . . . . . . . . . . . . . . . . . . Impact Corruptions . | . . . . . . . . . . . . . . . . . . . . . Robots Melted . | . . . . . . . . . . . . . . . . . . . . . Combat Hostiles . | . . . . . . . . . . . . . . . . . . . . . Parts Melted 3 | . . . . . . . 1 . . . . . 2 . . . . . . . Heat Transferred 487 | . . . . . . . 350 . . . . . 100 . . . . . 37 . Parts Sabotaged . | . . . . . . . . . . . . . . . . . . . . . Parts Stolen . | . . . . . . . . . . . . . . . . . . . . . Parts Stripped . | . . . . . . . . . . . . . . . . . . . . . Power Chain Reactions . | . . . . . . . . . . . . . . . . . . . . . Alert | -11 -10 -9 -9 -9 -8 -8 -7 -6 -6 -5 -5 -5 -4 -4 -3 -3 -2 -2 -2 -2 ------- Run | Yrd Mat Mat Min Exi Min Mat Fac Fac DSF Fac Was Fac Fac Gar Res DSF Res Gar Res Qua Maximum Alert Level 5 | . . . . . . 1 1 . . . . 1 2 3 2 1 . 2 1 5 Low Security (%) 62 | 100 100 100 100 . 100 85 67 100 100 100 100 68 30 . . . 100 64 91 . Level 1 25 | . . . . . . 14 32 . . . . 31 55 6 . 100 . 33 8 . Level 2 6 | . . . . . . . . . . . . . 13 62 100 . . 2 . . Level 3 1 | . . . . . . . . . . . . . . 31 . . . . . . Level 4 . | . . . . . . . . . . . . . . . . . . . . . Level 5 . | . . . . . . . . . . . . . . . . . . . . . High Security . | . . . . . . . . . . . . . . . . . . . . . Max Security 2 | . . . . . . . . . . . . . . . . . . . . 99 Peak Influence 1840 | . 35 150 140 . 84 251 262 105 148 77 . 315 569 756 430 352 150 419 235 1840 Initial 425 | . . . 51 . . . 97 105 3 77 . . 127 398 425 322 150 . 235 50 Average 212 | . 7 68 45 . 36 123 158 37 82 29 . 158 253 569 427 317 62 163 100 1722 Influence Increases 6332 | . 72 362 134 . 84 755 778 5 145 . . 1001 1315 448 5 105 6 519 358 240 Destroy 0b10 Robot/C 3740 | . 40 300 100 . 60 520 460 . 120 . . 500 700 400 . 60 . 300 180 . Destroy 0b10 Robot/NC 200 | . 5 15 5 . 5 10 40 . . . . 40 65 . . . . . 15 . Destroy Leader 724 | . 12 32 20 . 10 132 110 . 10 . . 144 154 30 . . . 30 40 . Allied During Kill 28 | . . . . . . . . . . . . 28 . . . . . . . . Successful Hack 14 | . . . . . . . . 5 . . . . 4 . 5 . . . . . Disable Machine 240 | . . . . . . 15 105 . 15 . . 15 45 . . 15 . 15 15 . Anti-Garrison Action 400 | . . . . . . . . . . . . 200 200 . . . . . . . Destroy Structure 266 | . . . 9 . 9 3 33 . . . . 14 72 18 . . 6 24 78 . Partial Spotted 30 | . . 15 . . . . . . . . . 15 . . . . . . . . Lose Combat Pursuer 690 | . 15 . . . . 75 30 . . . . 45 75 . . 30 . 150 30 240 Influence Decreases 6052 | . 72 230 266 . 84 540 777 216 2 148 . 740 1007 261 331 268 273 100 687 50 Entered New Map 1468 | . . . 81 . . . 118 111 2 71 . . 134 171 331 108 117 . 184 40 Time Decay 3493 | . 72 190 165 . 84 470 602 105 . 77 . 496 703 . . . 156 . 373 . Lost Part 1051 | . . 40 20 . . 70 57 . . . . 204 170 90 . 160 . 100 130 10 Lost Ally 40 | . . . . . . . . . . . . 40 . . . . . . . . Squads Dispatched 53 | . 1 1 . . . 4 8 . 1 1 . 6 13 . . 1 1 . 3 13 Investigation 7 | . . . . . . 1 . . . . . 2 4 . . . . . . . Extermination 12 | . . . . . . . 4 . . . . 2 4 . . . . . 2 . Reinforcement 21 | . 1 1 . . . 3 4 . 1 1 . 2 4 . . 1 1 . 1 1 Assault 13 | . . . . . . . . . . . . . 1 . . . . . . 12 Garrison . | . . . . . . . . . . . . . . . . . . . . . Intercept . | . . . . . . . . . . . . . . . . . . . . . Searches Triggered . | . . . . . . . . . . . . . . . . . . . . . Construction Impeded 4 | . . . . . . . 1 . . . . . 2 . . . . . . 1 Haulers Reinforced 1 | . . . . . . . 1 . . . . . . . . . . . . . Active Scanning Responses . | . . . . . . . . . . . . . . . . . . . . . Cargo Convoy Interrupts . | . . . . . . . . . . . . . . . . . . . . . Stealth | -11 -10 -9 -9 -9 -8 -8 -7 -6 -6 -5 -5 -5 -4 -4 -3 -3 -2 -2 -2 -2 --------- Run | Yrd Mat Mat Min Exi Min Mat Fac Fac DSF Fac Was Fac Fac Gar Res DSF Res Gar Res Qua Distress Signals 16 | . . 3 . . . . 2 . . . . 4 4 . . . . . 1 2 Communications Jammed . | . . . . . . . . . . . . . . . . . . . . . Distress Signals . | . . . . . . . . . . . . . . . . . . . . . Times Spotted 318 | . 6 21 5 . 3 38 33 1 9 1 2 32 58 20 . 10 4 31 17 27 Peak Tracking Total 16 | . 3 8 3 . 3 5 5 1 4 . 2 6 6 7 . 8 3 10 7 16 Tactical Retreats 23 | . 1 . . . . 3 2 . . . . 2 3 . . 2 . 4 2 4 Traps | -11 -10 -9 -9 -9 -8 -8 -7 -6 -6 -5 -5 -5 -4 -4 -3 -3 -2 -2 -2 -2 ------- Run | Yrd Mat Mat Min Exi Min Mat Fac Fac DSF Fac Was Fac Fac Gar Res DSF Res Gar Res Qua Traps Triggered 14 | . . 1 . . . 2 3 1 2 1 . 1 2 1 . . . . . . Indirectly . | . . . . . . . . . . . . . . . . . . . . . Trap Hack Attempts . | . . . . . . . . . . . . . . . . . . . . . Triggered . | . . . . . . . . . . . . . . . . . . . . . Disarmed . | . . . . . . . . . . . . . . . . . . . . . Reprogrammed . | . . . . . . . . . . . . . . . . . . . . . Reused . | . . . . . . . . . . . . . . . . . . . . . Traps Extracted . | . . . . . . . . . . . . . . . . . . . . . Installed . | . . . . . . . . . . . . . . . . . . . . . Triggered . | . . . . . . . . . . . . . . . . . . . . . Machines | -11 -10 -9 -9 -9 -8 -8 -7 -6 -6 -5 -5 -5 -4 -4 -3 -3 -2 -2 -2 -2 ---------- Run | Yrd Mat Mat Min Exi Min Mat Fac Fac DSF Fac Was Fac Fac Gar Res DSF Res Gar Res Qua Machines Disabled 16 | . . . . . . 1 7 . 1 . . 1 3 . . 1 . 1 1 . Max in Single Turn 5 | . . . . . . 1 5 . 1 . . 1 1 . . 1 . 1 1 . Garrison Access 2 | . . . . . . . . . . . . 1 1 . . . . . . . Machines Repaired . | . . . . . . . . . . . . . . . . . . . . . Machines Dismantled . | . . . . . . . . . . . . . . . . . . . . . Machines Sabotaged . | . . . . . . . . . . . . . . . . . . . . . Overloaded Fab Kills . | . . . . . . . . . . . . . . . . . . . . . Hacking | -11 -10 -9 -9 -9 -8 -8 -7 -6 -6 -5 -5 -5 -4 -4 -3 -3 -2 -2 -2 -2 --------- Run | Yrd Mat Mat Min Exi Min Mat Fac Fac DSF Fac Was Fac Fac Gar Res DSF Res Gar Res Qua Machines Accessed 11 | . . . . 1 . . . 2 . . . 1 5 . 1 . 1 . . . Terminals 4 | . . . . . . . . 1 . . . . 2 . 1 . . . . . Fabricators . | . . . . . . . . . . . . . . . . . . . . . Repair Stations 1 | . . . . . . . . . . . . . 1 . . . . . . . Recycling Units . | . . . . . . . . . . . . . . . . . . . . . Scanalyzers . | . . . . . . . . . . . . . . . . . . . . . Garrison Access 5 | . . . . . . . . 1 . . . 1 2 . . . 1 . . . Total Hacks 15 | . . . . 1 . . . 2 . . . 3 7 . 1 . 1 . . . Successful 8 | . . . . 1 . . . 1 . . . 1 3 . 1 . 1 . . . Failed 7 | . . . . . . . . 1 . . . 2 4 . . . . . . . Catastrophic 1 | . . . . . . . . . . . . . 1 . . . . . . . Database Lockouts . | . . . . . . . . . . . . . . . . . . . . . Manual 11 | . . . . 1 . . 1 1 . . . 3 5 . . . . . . . Terminals 5 | . . . . . . . . 1 . . . . 3 . 1 . . . . . Fabricators . | . . . . . . . . . . . . . . . . . . . . . Repair Stations 1 | . . . . . . . . . . . . . 1 . . . . . . . Recycling Units . | . . . . . . . . . . . . . . . . . . . . . Scanalyzers . | . . . . . . . . . . . . . . . . . . . . . Garrison Access 8 | . . . . . . . . 1 . . . 3 3 . . . 1 . . . Terminal Hacks 3 | . . . . 1 . . . 1 . . . . . . 1 . . . . . Open DSF 2 | . . . . . . . . 1 . . . . . . 1 . . . . . Proto ID Catalog 1 | . . . . 1 . . . . . . . . . . . . . . . . Fabricator Hacks . | . . . . . . . . . . . . . . . . . . . . . Repair Station Hacks . | . . . . . . . . . . . . . . . . . . . . . Recycling Unit Hacks . | . . . . . . . . . . . . . . . . . . . . . Scanalyzer . | . . . . . . . . . . . . . . . . . . . . . Garrison Access Hacks 2 | . . . . . . . . . . . . . 1 . . . 1 . . . Unlock Access 2 | . . . . . . . . . . . . . 1 . . . 1 . . . Unauthorized Hacks 3 | . . . . . . . . . . . . 1 2 . . . . . . . Terminals . | . . . . . . . . . . . . . . . . . . . . . Fabricators . | . . . . . . . . . . . . . . . . . . . . . Repair Stations 1 | . . . . . . . . . . . . . 1 . . . . . . . Patch 1 | . . . . . . . . . . . . . 1 . . . . . . . Recycling Units . | . . . . . . . . . . . . . . . . . . . . . Scanalyzers . | . . . . . . . . . . . . . . . . . . . . . Garrison Access 2 | . . . . . . . . . . . . 1 1 . . . . . . . Jam 2 | . . . . . . . . . . . . 1 1 . . . . . . . Data Cores Recovered . | . . . . . . . . . . . . . . . . . . . . . Used . | . . . . . . . . . . . . . . . . . . . . . Hacking Detections 6 | . . . . . . . . 1 . . . 1 3 . . . 1 . . . Full Trace Events 1 | . . . . . . . . . . . . . 1 . . . . . . . Feedback Events . | . . . . . . . . . . . . . . . . . . . . . Feedback Blocked . | . . . . . . . . . . . . . . . . . . . . . Robot Schematics Acquired . | . . . . . . . . . . . . . . . . . . . . . Robots Built . | . . . . . . . . . . . . . . . . . . . . . Authchips . | . . . . . . . . . . . . . . . . . . . . . Time . | . . . . . . . . . . . . . . . . . . . . . Total Robot Build Rating . | . . . . . . . . . . . . . . . . . . . . . Part Schematics Acquired . | . . . . . . . . . . . . . . . . . . . . . Parts Built . | . . . . . . . . . . . . . . . . . . . . . Authchips . | . . . . . . . . . . . . . . . . . . . . . Time . | . . . . . . . . . . . . . . . . . . . . . Total Part Build Rating . | . . . . . . . . . . . . . . . . . . . . . Parts Repaired . | . . . . . . . . . . . . . . . . . . . . . Time . | . . . . . . . . . . . . . . . . . . . . . Parts Recycled . | . . . . . . . . . . . . . . . . . . . . . Recycled Matter . | . . . . . . . . . . . . . . . . . . . . . Retrieved Matter . | . . . . . . . . . . . . . . . . . . . . . Retrieved Components . | . . . . . . . . . . . . . . . . . . . . . Parts Scanalyzed . | . . . . . . . . . . . . . . . . . . . . . Part Schematics Acquired . | . . . . . . . . . . . . . . . . . . . . . Parts Damaged . | . . . . . . . . . . . . . . . . . . . . . Bothacking | -11 -10 -9 -9 -9 -8 -8 -7 -6 -6 -5 -5 -5 -4 -4 -3 -3 -2 -2 -2 -2 ------------ Run | Yrd Mat Mat Min Exi Min Mat Fac Fac DSF Fac Was Fac Fac Gar Res DSF Res Gar Res Qua Used RIF Installer 1 | . . . . . . . . . . . . . . 1 . . . . . . Robots Hacked . | . . . . . . . . . . . . . . . . . . . . . Non-combat . | . . . . . . . . . . . . . . . . . . . . . Combat . | . . . . . . . . . . . . . . . . . . . . . Robot Hacks Applied . | . . . . . . . . . . . . . . . . . . . . . Relay Couplers Released . | . . . . . . . . . . . . . . . . . . . . . Fabnet Peak Effective % . | . . . . . . . . . . . . . . . . . . . . . Robots Rewired . | . . . . . . . . . . . . . . . . . . . . . Allies Hacked . | . . . . . . . . . . . . . . . . . . . . . Hacks Repelled . | . . . . . . . . . . . . . . . . . . . . . Allies | -11 -10 -9 -9 -9 -8 -8 -7 -6 -6 -5 -5 -5 -4 -4 -3 -3 -2 -2 -2 -2 -------- Run | Yrd Mat Mat Min Exi Min Mat Fac Fac DSF Fac Was Fac Fac Gar Res DSF Res Gar Res Qua Total Allies . | . . . . . . . . . . . . . . . . . . . . . Largest Group . | . . . . . . . . . . . . . . . . . . . . . Highest-Rated Group . | . . . . . . . . . . . . . . . . . . . . . Highest-Rated Ally . | . . . . . . . . . . . . . . . . . . . . . Total Orders . | . . . . . . . . . . . . . . . . . . . . . Ally Attacks 32 | . . . . . . . . . . . . 32 . . . . . . . . Total Damage 1707 | . . . . . . . . . . . . 1707 . . . . . . . . Kills 10 | . . . . . . . . . . . . 10 . . . . . . . . Allies Corrupted . | . . . . . . . . . . . . . . . . . . . . . Allies Melted . | . . . . . . . . . . . . . . . . . . . . . Turrets Deployed 3 | . . . . . . . . . . . . 3 . . . . . . . . Intel | -11 -10 -9 -9 -9 -8 -8 -7 -6 -6 -5 -5 -5 -4 -4 -3 -3 -2 -2 -2 -2 ------- Run | Yrd Mat Mat Min Exi Min Mat Fac Fac DSF Fac Was Fac Fac Gar Res DSF Res Gar Res Qua Active Infowar (turns) . | . . . . . . . . . . . . . . . . . . . . . Robot Analysis Total . | . . . . . . . . . . . . . . . . . . . . . Derelict Logs Recovered 1 | . . . 1 . . . . . . . . . . . . . . . . . Drone Launches . | . . . . . . . . . . . . . . . . . . . . . Drone Recoveries . | . . . . . . . . . . . . . . . . . . . . . Exploration | -11 -10 -9 -9 -9 -8 -8 -7 -6 -6 -5 -5 -5 -4 -4 -3 -3 -2 -2 -2 -2 ------------- Run | Yrd Mat Mat Min Exi Min Mat Fac Fac DSF Fac Was Fac Fac Gar Res DSF Res Gar Res Qua Turns Passed 14050 | 120 286 486 572 377 205 1397 2196 321 194 223 101 1361 3048 824 15 162 380 518 933 331 Spaces Moved 7852 | 71 153 245 332 288 153 753 1373 219 111 153 70 670 1626 412 9 63 77 196 395 483 Core 492 | 2 . . . . . . 5 . . . . . . . . . . . 2 483 Treads 2275 | 66 126 . . . . . 2 . . . . 90 841 412 9 63 77 196 393 . Legs . | . . . . . . . . . . . . . . . . . . . . . Wheels 5085 | 3 27 245 332 288 153 753 1366 219 111 153 70 580 785 . . . . . . . Hover . | . . . . . . . . . . . . . . . . . . . . . Flight . | . . . . . . . . . . . . . . . . . . . . . Fastest Speed 50 | 50 145 145 130 130 130 115 130 145 145 145 145 100 115 163 162 145 151 151 50 50 Average Speed 137 | 154 157 145 130 130 130 126 135 145 145 145 145 141 141 163 162 162 151 166 183 50 Slowest Speed 1050 | 160 160 145 130 130 130 145 1050 145 145 145 145 240 245 163 162 240 151 250 250 50 Overloaded Moves . | . . . . . . . . . . . . . . . . . . . . . Propulsion Burnouts . | . . . . . . . . . . . . . . . . . . . . . Robots Hopped 3 | . . . . . . . . . . . . 3 . . . . . . . . Potential Cave-ins . | . . . . . . . . . . . . . . . . . . . . . Cave-ins Triggered . | . . . . . . . . . . . . . . . . . . . . . Exploration Rate (%) 34 | 3 24 19 60 62 46 55 29 6 87 5 70 14 28 37 . 43 2 37 10 58 Regions Visited 20 Branch Regions 4 Pre-discovered Areas 1 | . . . 1 . . . . . . . . . . . . . . . . . Known Exits Taken 4 | . . . . . . . . 1 . . . . 1 . 1 . 1 . . . Unknown Exits Taken 10 | 1 1 1 1 1 1 1 1 . . . . 1 . . . . . . 1 . Scrap Searched 1 | . . . . . 1 . . . . . . . . . . . . . . . Spaces Dug 9 | . . . . . . . 1 . . . . . 2 . . . 2 . 4 . Terrain Destroyed 163 | . . . 15 . 10 . 35 . 6 . . 5 53 5 . . 2 6 26 . Melee . | . . . . . . . . . . . . . . . . . . . . . Projectile 80 | . . . . . . . 12 . 6 . . 4 46 1 . . 2 5 4 . AOE 81 | . . . 15 . 10 . 23 . . . . . 7 4 . . . . 22 . Terrain Rammed . | . . . . . . . . . . . . . . . . . . . . . Walls Destroyed . | . . . . . . . . . . . . . . . . . . . . . Machines Disabled . | . . . . . . . . . . . . . . . . . . . . . Actions | -11 -10 -9 -9 -9 -8 -8 -7 -6 -6 -5 -5 -5 -4 -4 -3 -3 -2 -2 -2 -2 --------- Run | Yrd Mat Mat Min Exi Min Mat Fac Fac DSF Fac Was Fac Fac Gar Res DSF Res Gar Res Qua Total 10046 | 79 176 298 444 291 156 1051 1589 222 129 155 69 908 2148 494 10 104 338 289 526 570 Wait 1305 | . 5 . 84 . . 167 94 . 1 . . 131 342 24 . 20 255 16 76 90 Move 7819 | 70 152 244 331 287 152 752 1372 218 110 153 69 663 1625 410 8 62 76 194 394 477 Hop 3 | . . . . . . . . . . . . 3 . . . . . . . . Pick Up 106 | 3 6 6 9 3 . 10 18 1 1 . . 6 27 6 . 6 . . 4 . Fast Attach 74 | 6 1 2 . . 1 10 7 . . . . 13 16 1 . 4 1 8 4 . Attach 62 | . . 5 1 . . 3 7 2 . 1 . 11 9 8 2 3 4 5 1 . Detach . | . . . . . . . . . . . . . . . . . . . . . Swap 44 | . . . 3 . 2 8 8 1 1 1 . 1 9 4 . 1 . 1 4 . Drop 81 | . 1 . . 1 . 20 22 . 2 . . 3 19 9 . . . . 4 . Fire 526 | . 11 39 16 . 1 80 58 . 7 . . 77 98 32 . 7 2 62 36 . Melee . | . . . . . . . . . . . . . . . . . . . . . Ram 8 | . . 2 . . . 1 1 . . . . . 1 . . . . . . 3 Kick . | . . . . . . . . . . . . . . . . . . . . . Crush 11 | . . . . . . . 2 . . . . . 2 . . 1 . 3 3 . Escape Stasis 7 | . . . . . . . . . 7 . . . . . . . . . . . Rewire . | . . . . . . . . . . . . . . . . . . . . . Trap . | . . . . . . . . . . . . . . . . . . . . . Miscellaneous . | . . . . . . . . . . . . . . . . . . . . . Route ------- -11/Scrapyard -10/Materials -9/Materials -9/Mines -9/Exiles -8/Mines -8/Materials -7/Factory -6/Factory -6/DSF -5/Factory -5/Waste -5/Factory -4/Factory -4/Garrison -3/Research -3/DSF -2/Research -2/Garrison -2/Research (discovered 2 exits: [*Acc] / [*Qua]) -2/Quarantine (discovered 2 exits: [*Sec] / [*Frg]) History --------- Turn | Location | Event 45 | -11/Scrapyard | Discovered new exit (range 15) 121 | -11/Scrapyard | Entered Materials 312 | -10/Materials | Build established: Mutant 333 | -10/Materials | Discovered new exit (range 10) 407 | -10/Materials | Entered another Materials area 407 | -9/Materials | Evolved 2 slots: Weapon x2 685 | -9/Materials | Discovered new exit (range 16) 803 | -9/Materials | Lost 4 parts (1n1u2w) 893 | -9/Materials | Entered Mines 1073 | -9/Mines | Build established: Gunner 1456 | -9/Mines | Deemed a non-threat by the Exiles lab entrance 1457 | -9/Mines | Discovered new exit (range 5) 1465 | -9/Mines | Entered Exiles 1511 | -9/Exiles | Met 8R-AWN 1541 | -9/Exiles | Met EX-HEX 1598 | -9/Exiles | Met EX-BIN 1627 | -9/Exiles | Aligned with FarCom system 1628 | -9/Exiles | Given EX-Vault access code 1670 | -9/Exiles | Opened EX-Vault 1680 | -9/Exiles | Found Deploy-a-Sentry 1682 | -9/Exiles | Found Deploy-a-Sentry 1685 | -9/Exiles | Found Deploy-a-Sentry 1709 | -9/Exiles | Warned to stay clear of 0b10 Research branches 1726 | -9/Exiles | Exiles lab attacked by MAIN.C 1821 | -9/Exiles | Discovered new exit (range 11) 1842 | -9/Exiles | Left Exiles lab with Deploy-a-Sentry 1842 | -9/Exiles | Entered Mines 2025 | -8/Mines | Discovered new exit (range 7) 2047 | -8/Mines | Entered Materials 2047 | -8/Materials | Evolved 2 slots: Utility x2 2153 | -8/Materials | Build established: Skirmisher 2321 | -8/Materials | Lost 3 parts (1n2w) 2836 | -8/Materials | Build established: Scavenger-Tank 3418 | -8/Materials | Discovered new exit (range 16) 3444 | -8/Materials | Entered Factory 3444 | -7/Factory | Evolved 2 slots: Propulsion x2 3466 | -7/Factory | Build established: Scavenger-Skirmisher 4309 | -7/Factory | Found Powered Armor 4311 | -7/Factory | Found Powered Armor 4611 | -7/Factory | Build established: Skirmisher 5059 | -7/Factory | Build established: Tank 5630 | -7/Factory | Discovered new exit (range 5) 5640 | -7/Factory | Entered another Factory area 5640 | -6/Factory | Evolved 2 slots: Utility x2 5935 | -6/Factory | Build established: Gunner 5961 | -6/Factory | Identified exit to DSF 5961 | -6/Factory | Entered DSF 6012 | -6/DSF | Additional patrols routed to DSF 6131 | -6/DSF | Discovered new exit (range 15) 6155 | -6/DSF | Entered Factory 6155 | -5/Factory | Evolved 2 slots: Power x1, Utility x1 6378 | -5/Factory | Sucked down chute 6378 | -5/Factory | Entered Waste 6393 | -5/Waste | EMP discharged 6421 | -5/Waste | Spotted C-40 Crusher 6426 | -5/Waste | Spotted C-40 Crusher 6429 | -5/Waste | Spotted C-40 Crusher 6436 | -5/Waste | Crushed by Compactor (1 part destroyed) 6439 | -5/Waste | Crushed by Compactor (0 parts destroyed, 1 dropped) 6455 | -5/Waste | Discovered new exit (range 16) 6479 | -5/Waste | Entered Factory 7054 | -5/Factory | Lost 3 parts (1n1u1w) 7110 | -5/Factory | Lost 6 parts (1p1n2u2w) 7185 | -5/Factory | Lost 3 parts (1u2w) 7256 | -5/Factory | DAS Turret deployed 7295 | -5/Factory | DAS Turret deployed 7321 | -5/Factory | Lost 5 parts (2p2n1w) 7498 | -5/Factory | DAS Turret deployed 7818 | -5/Factory | Discovered new exit (range 15) 7840 | -5/Factory | Entered another Factory area 7840 | -4/Factory | Evolved 2 slots: Utility x2 8086 | -4/Factory | Build established: Tank 8127 | -4/Factory | Lost 3 parts (2u1w) 8410 | -4/Factory | Build established: Scavenger-Tank 9280 | -4/Factory | Lost 3 parts (2n1u) 9281 | -4/Factory | Destroyed 7 combat bots 9742 | -4/Factory | Lost 4 parts (1p1u2w) 10840 | -4/Factory | First assault squad dispatched 10851 | -4/Factory | Identified exit to Garrison 10888 | -4/Factory | Entered Garrison 10916 | -4/Garrison | Installed Relay Interface Framework 11306 | -4/Garrison | Triggered checkpoint 11318 | -4/Garrison | Triggered checkpoint 11351 | -4/Garrison | Triggered checkpoint 11429 | -4/Garrison | Triggered checkpoint 11477 | -4/Garrison | Lost 6 parts (1n2u3w) 11694 | -4/Garrison | Discovered new exit (range 8) 11712 | -4/Garrison | Entered Research 11712 | -3/Research | Evolved 2 slots: Propulsion x2 11719 | -3/Research | Identified exit to DSF 11727 | -3/Research | Entered DSF 11778 | -3/DSF | Additional patrols routed to DSF 11828 | -3/DSF | Discovered new exit (range 16) 11889 | -3/DSF | Entered Research 11889 | -2/Research | Evolved 2 slots: Utility x2 11919 | -2/Research | Lost 16 parts (2p7n4u3w) 12169 | -2/Research | Build established: Mutant 12267 | -2/Research | Identified exit to Garrison 12269 | -2/Research | Entered Garrison 12428 | -2/Garrison | Lost 6 parts (1p3n1u1w) 12557 | -2/Garrison | Spotted B-90 Cyclops 12557 | -2/Garrison | Spotted B-90 Cyclops 12645 | -2/Garrison | Spotted B-90 Cyclops 12707 | -2/Garrison | Triggered checkpoint 12709 | -2/Garrison | Triggered checkpoint 12739 | -2/Garrison | Triggered checkpoint 12754 | -2/Garrison | Build established: Scavenger-Gunner 12763 | -2/Garrison | Discovered new exit (range 15) 12787 | -2/Garrison | Entered Research 12940 | -2/Research | Spotted B-90 Cyclops 13691 | -2/Research | Discovered new exit (range 15) 13715 | -2/Research | Discovered new exit (range 12) 13720 | -2/Research | Entered Quarantine 13721 | -2/Quarantine | Maximum security lockdown engaged 13734 | -2/Quarantine | Core integrity fell below 50% 13750 | -2/Quarantine | Lost 10 parts (1p2n3u4w) 13842 | -2/Quarantine | Core integrity fell below 20% 13882 | -2/Quarantine | Spotted Fortress 13917 | -2/Quarantine | Discovered new exit (range 6) 13917 | -2/Quarantine | Discovered new exit (range 6) 13987 | -2/Quarantine | Build established: Mutant 14051 | -2/Quarantine | Destroyed by G-73 Enforcer with Phase Gun Last Messages --------------- lockdown procedures. [Achievement: Nope] 13885_ Knocked back. 13886_ Acquired 1 matter. 13888_ System corrupted: Matter fused (-9). 13914_ System corrupted: Matter fused (-7). 13917_ EXIT=FOUND (Lockdown) 13921_ ALERT: Assault forces dispatched. 13940_ TT8O,Z&SDL0LV1AA8WPV 14036_ MBDBY/ DQV4BBE BRQX3 14047_ C-30 ARC bursts open, deploying its payload. 14047_ G-73 Enforcer unfolds itself. 14047_ B-74 Champion unfolds itself. 14047_ G-73 Enforcer unfolds itself. 14048_ Imp. Armor Integrity Analyzer destroyed. [Achievement: Tester] Map ----- +----------------------------------------------------+ | ????????????????????????????? | | ????????????????????????????? | | ????????????????????????????? | | ????????????????????????????? | | ????????????????????????????? | | ????????????????????????????? | | ????????????????????????????? | | ????????????????????????????? | | ????????????????????????????? | | ????????????????????????????? | | ????????????????????????????? | | ????????????????????????????? | | ????????????????????????????? | | ????????????????????????????? | | ????????????????????????????? | | ????????????????????????????? | | ????????????????????????????? | | ????????????????????????????? | | ????????????????????????????? | | ????????????????????????????? | | ????????????????????????????? | | ????????????????????????????? | | ????????????????????????????? | | ????????????????????????????? | | ????????????????????????##### | | #######################?#@ # | | ###gg # | | C C C+ %gb # | | + i # | | C + # | | + # | | ### < # | | #######################?# # | | ????????????????????????##### | | ????????????????????????????? | | ????????????????????????????? | | ????????????????????????????? | | ????????????????????????????? | | ????????????????????????????? | | ????????????????????????????? | | ????????????????????????????? | | ????????????????????????????? | | ????????????????????????????? | | ????????????????????????????? | | ????????????????????????????? | | ????????????????????????????? | | ????????????????????????????? | | ????????????????????????????? | | ????????????????????????????? | | ????????????????????????????? | +----------------------------------------------------+ Best States ------------- Heat Dissipation 68 Energy Generation 41 Energy Capacity 995 Matter Stores 500 Matter Capacity 500 Sight Range 16 Terrain Scan Density 10 Base Temperature (-) 100 Armor Coverage 600 Resistance: KI 25 Resistance: TH 30 Point Defense Rating 160 Phase Shifting 15 Evasion (%) 55 Targeting Accuracy 12 Target Analysis 9 Armor Integrity Analysis 40 Recoil Reduction 6 Matter Filtering 30 Kinecelleration 30 Item Schematics ----------------- None Robot Schematics ------------------ None Fabricated ------------ Nothing Repaired ---------- Nothing Alien Tech Used ----------------- None Achievements -------------- Nope Tester Challenges ------------ None Game ------ Seed PhasingMomentumChip Manual? 0 Play Time 01:23:23 Cumulative 93.9 hours Start 2025.06.26 @ 22:05:52 End 2025.06.26 @ 23:28:39 Sessions 1 Manual Loads 0 Difficulty Rogue Special Mode None Game No. 125 Rogue 125 Adventurer 0 Explorer 0 Win Type - Total 1 Types 1/0/0/0/0/0/0/0/0/0 Lore% 38 Gallery% 50 Achievement% 43 Wizard Run 0 Options --------- Layout 1 ASCII 0 Keyboard 0 Movement Arrows Keybinds 0 Fullscreen 1 Font 24/Smallcaps Map View 50x35 Zoom Use 0% Tactical HUD 1 Map Filters NONE Filters NONE Steam X RUN: d081eda3-d707-4d72-88bd-b1fd442d3aeb